bitfinex/quotes_SOLUSD_20241210
["timestamp","ask_amount","ask_price","bid_price","bid_amount"]
[1733806946855,20.0,215.96,215.87,1.79438242]
[1733806947377,20.0,215.92,215.84,0.69455714]
[1733806947570,20.0,215.9,215.84,0.69455714]
[1733806947765,20.0,215.9,215.79,31.03693445]
[1733806947968,20.0,215.9,215.79,1.79467616]
[1733806948274,30.0,215.9,215.79,1.79467616]
[1733806949259,20.0,215.85,215.79,0.69467616]
[1733806949563,20.0,215.85,215.76,1.79483675]
[1733806949884,20.0,215.81,215.75,1.535]
[1733806950050,10.0,215.79,215.69,0.69509384]
[1733806950584,10.0,215.77,215.69,0.69509384]
[1733806951469,10.0,215.79,215.69,0.69509384]
[1733806951652,23.776884,215.81,215.69,0.69509384]
[1733806951988,20.0,215.78,215.69,0.69509384]
[1733806952369,10.0,215.88,215.72,29.24225829]
[1733806952682,10.0,215.88,215.73,0.69486305]
[1733806953398,10.0,215.9,215.75,21.1]
[1733806953554,10.0,215.92,215.76,0.69478392]
[1733806953880,20.0,215.88,215.76,0.69478392]
[1733806954393,10.0,215.91,215.76,1.79478392]
[1733806954701,0.69435653,215.97,215.76,1.79478392]
[1733806954702,10.0,215.93,215.76,31.03704221]
[1733806954852,10.0,215.93,215.77,54.11914229]
[1733806955045,10.0,215.9,215.78,1.79468414]
[1733806955664,20.0,215.87,215.78,1.79468414]
[1733806956357,20.0,215.87,215.78,0.69468414]
[1733806956358,20.0,215.82,215.78,0.69468414]
[1733806956689,20.0,215.82,215.75,0.69496051]
[1733806956865,30.0,215.82,215.69,1.79500843]
[1733806957583,20.0,215.81,215.69,1.79500843]
[1733806958089,30.0,215.82,215.69,1.79500843]
[1733806958289,20.0,215.81,215.69,1.79500843]
[1733806958460,20.0,215.81,215.69,31.03726672]
[1733806958883,20.0,215.83,215.69,31.03726672]
[1733806959253,20.0,215.81,215.69,1.79500843]
[1733806959475,20.0,215.79,215.69,1.79500843]
[1733806959759,20.0,215.81,215.69,1.79500843]
[1733806959989,20.0,215.81,215.7,29.24225829]
[1733806960156,20.0,215.81,215.71,0.69497498]
[1733806960579,33.776884,215.86,215.71,0.69497498]
[1733806960892,20.0,215.83,215.71,0.69497498]
[1733806961067,20.0,215.83,215.71,29.93723327]
[1733806961378,20.0,215.83,215.72,24.876884]
[1733806961587,20.0,215.83,215.73,0.69487178]
[1733806961875,10.0,215.88,215.73,1.79487178]
[1733806961876,20.0,215.85,215.73,1.79487178]
[1733806962392,10.0,215.9,215.73,31.03713007]
[1733806962946,10.0,215.87,215.73,31.03713007]
[1733806963399,10.0,215.85,215.73,1.79487178]
[1733806964079,20.0,215.84,215.73,1.79487178]
[1733806964386,10.0,215.89,215.74,50.056984]
[1733806964586,10.0,215.93,215.76,29.24225829]
[1733806964780,10.0,215.95,215.78,29.24225829]
[1733806964961,10.0,215.95,215.79,0.69467853]
[1733806965168,10.0,215.94,215.82,1.6262]
[1733806965367,10.0,215.94,215.83,1.7946445]
[1733806966202,10.0,215.91,215.83,1.7946445]
[1733806967777,10.0,215.93,215.83,0.6946445]
[1733806967981,10.0,215.96,215.83,0.6946445]
[1733806968181,10.0,215.94,215.83,0.6946445]
[1733806968596,20.0,215.93,215.83,0.6946445]
[1733806968899,30.0,215.93,215.83,0.6946445]
[1733806969083,10.0,215.91,215.83,0.6946445]
[1733806972211,10.0,215.88,215.82,1.6262]
[1733806972913,10.0,215.84,215.76,1.5746]
[1733806973199,10.0,215.84,215.77,0.69494242]
[1733806973404,10.0,215.86,215.77,0.69494242]
[1733806974009,10.0,215.84,215.77,0.69494242]
[1733806976707,10.0,215.89,215.77,0.69494242]
[1733806976892,10.0,215.87,215.77,1.79494242]
[1733806977304,23.776884,215.88,215.77,1.79494242]
[1733806977689,10.0,215.91,215.8,20.0]
[1733806977911,10.0,215.91,215.81,0.69473233]
[1733806979117,10.0,215.87,215.81,0.69473233]
[1733806979485,10.0,215.87,215.79,1.1]
[1733806980296,0.69435653,215.97,215.78,0.69483538]
[1733806980297,10.0,215.85,215.78,0.69483538]
[1733806981077,23.776884,215.86,215.78,0.69483538]
[1733806981708,10.0,215.85,215.78,0.69483538]
[1733806981932,1.85424191,215.96,215.78,0.69483538]
[1733806981933,10.0,215.91,215.78,21.79483538]
[1733806982117,10.0,215.95,215.84,20.0]
[1733806982311,10.0,215.95,215.85,0.69461646]
[1733806982494,10.0,215.97,215.86,20.0]
[1733806982707,10.0,215.95,215.87,0.69454247]
[1733806982892,10.0,215.95,215.88,1.5746]
[1733806983317,10.0,215.95,215.89,0.69458334]
[1733806983695,10.0,215.99,215.89,0.69458334]
[1733806984210,10.5682305,216.11,215.91,20.0]
[1733806984211,10.0,216.01,215.91,20.0]
[1733806984418,10.0,216.03,215.93,20.0]
[1733806984618,10.0,216.05,215.94,0.69432217]
[1733806984821,10.0,216.09,215.94,0.69432217]
[1733806985112,10.0,216.07,215.99,20.0]
[1733806985320,10.0,216.09,216.0,0.69418592]
[1733806985494,10.5682305,216.11,216.01,1.5746]
[1733806985706,0.5682305,216.11,216.02,20.69406776]
[1733806986122,0.5682305,216.11,216.04,20.0]
[1733806986417,0.5682305,216.11,216.05,20.6939086]
[1733806986836,0.5682305,216.11,216.05,0.6939086]
[1733806987113,0.5682305,216.11,216.07,20.0]
[1733806987314,0.5682305,216.11,216.08,0.69390236]
[1733806988225,0.5682305,216.11,216.07,1.1]
[1733806988610,0.5682305,216.11,216.08,0.5407582]
[1733806991614,0.5682305,216.11,216.05,0.54057262]
[1733806993937,0.5682305,216.11,216.1,20.0]
[1733806994128,0.5682305,216.11,216.1,1.64011297]
[1733806994422,0.5682305,216.11,216.1,21.64011297]
[1733806995717,0.5682305,216.11,216.1,1.64011297]
[1733806996412,0.5682305,216.11,216.1,1.1]
[1733806997405,0.5682305,216.11,216.08,0.54037563]
[1733806998137,0.5682305,216.11,216.09,0.54037539]
[1733806999020,0.5682305,216.11,216.1,0.54036254]
[1733807000346,1e-08,216.11,216.1,0.54036254]
[1733807000454,1e-08,216.11,216.1,20.54036254]
[1733807001325,1e-08,216.11,216.1,0.54036254]
[1733807001527,1e-08,216.11,216.1,1.64036254]
[1733807003046,1e-08,216.11,216.1,45.41724654]
[1733807003344,10.0,216.24,216.11,43.776884]
[1733807003521,6.1296,216.3,216.17,20.0]
[1733807003522,10.0,216.26,216.17,20.0]
[1733807003751,10.0,216.29,216.18,20.53949111]
[1733807004037,10.0,216.31,216.2,43.776884]
[1733807004341,10.0,216.31,216.21,0.53918808]
[1733807004539,10.5682305,216.33,216.21,21.63918808]
[1733807004909,0.5682305,216.33,216.23,20.0]
[1733807005152,10.0,216.31,216.24,0.53903551]
[1733807006221,0.5682305,216.33,216.24,0.53903551]
[1733807006222,10.0,216.29,216.24,0.53903551]
[1733807006432,10.0,216.29,216.22,0.53937849]
[1733807006631,10.0,216.27,216.21,1.1]
[1733807007245,10.0,216.25,216.19,0.53942393]
[1733807007978,10.0,216.25,216.17,24.31657806]
[1733807008453,10.0,216.27,216.17,24.31657806]
[1733807008627,10.0,216.3,216.17,25.41657806]
[1733807008940,10.0,216.3,216.21,23.776884]
[1733807009147,10.0,216.32,216.22,0.53922509]
[1733807009438,10.0,216.29,216.22,0.53922509]
[1733807010316,10.0,216.27,216.22,0.53922509]
[1733807011243,10.0,216.25,216.18,23.776884]
[1733807011414,10.0,216.25,216.17,1.1]
[1733807011415,10.0,216.23,216.19,0.53970394]
[1733807011622,10.0,216.23,216.17,1.1]
[1733807012138,10.0,216.23,216.18,0.53976892]
[1733807012645,10.0,216.23,216.18,24.31665292]
[1733807013045,10.0,216.27,216.18,24.31665292]
[1733807013724,10.0,216.29,216.18,24.31665292]
[1733807014056,10.0,216.29,216.22,23.776884]
[1733807014229,10.0,216.29,216.23,0.53922261]
[1733807015621,0.5682305,216.33,216.23,0.53922261]
[1733807015622,10.0,216.32,216.23,0.53922261]
[1733807015852,0.5682305,216.33,216.24,23.776884]
[1733807016023,0.5682305,216.33,216.25,1.63892586]
[1733807016224,0.5682305,216.33,216.26,23.776884]
[1733807016423,10.5682305,216.33,216.27,0.53877282]
[1733807016858,0.5682305,216.33,216.27,0.53877282]
[1733807017145,0.5682305,216.33,216.28,1.1]
[1733807017367,10.5682305,216.33,216.29,23.776884]
[1733807019365,10.5682305,216.33,216.28,1.1]
[1733807019542,10.0,216.32,216.29,23.776884]
[1733807020249,0.5682305,216.33,216.29,23.776884]
[1733807020626,0.5682305,216.33,216.3,0.5387887]
[1733807020826,0.5682305,216.33,216.3,1.6387887]
[1733807021053,0.5682305,216.33,216.31,23.776884]
[1733807021231,0.5682305,216.33,216.32,0.53845973]
[1733807021829,0.5682305,216.33,216.32,1.63845973]
[1733807022029,0.5682305,216.33,216.32,25.41534373]
[1733807023162,10.5682305,216.33,216.26,2.18240374]
[1733807023474,10.5682305,216.33,216.26,1.6439]
[1733807024055,0.5682305,216.33,216.27,0.5389156]
[1733807024845,0.5682305,216.33,216.27,24.3157996]
[1733807026062,0.5682305,216.33,216.3,20.0]
[1733807026355,0.5682305,216.33,216.31,24.31546134]
[1733807026955,0.5682305,216.33,216.31,25.41546134]
[1733807027548,10.0,216.43,216.35,23.776884]
[1733807027751,10.0,216.45,216.37,23.776884]
[1733807027947,10.0,216.45,216.38,0.53806962]
[1733807028432,10.0,216.43,216.38,0.53806962]
[1733807028651,10.0,216.38,216.3,3.50543048]
[1733807028957,10.0,216.36,216.31,23.776884]
[1733807029145,10.0,216.34,216.27,7.82348277]
[1733807029869,0.86657668,216.46,216.26,3.4576367]
[1733807029870,10.0,216.32,216.26,2.7439]
[1733807030117,10.0,216.3,216.26,2.7439]
[1733807030248,10.0,216.3,216.26,1.1]
[1733807031157,10.0,216.32,216.26,1.1]
[1733807031466,10.0,216.34,216.27,24.31586093]
[1733807031765,10.0,216.34,216.27,25.41586093]
[1733807032151,10.0,216.37,216.31,23.776884]
[1733807032353,10.0,216.37,216.31,24.31552964]
[1733807033769,10.0,216.35,216.31,23.776884]
[1733807033970,10.0,216.33,216.3,1.1]
[1733807034266,10.0,216.33,216.22,6.1847]
[1733807034267,10.0,216.31,216.23,1.63906219]
[1733807034862,10.0,216.29,216.23,0.53906219]
[1733807035367,10.0,216.25,216.21,2.14844337]
[1733807035675,10.0,216.27,216.21,2.14844337]
[1733807036042,10.0,216.29,216.21,2.14844337]
[1733807036745,10.0,216.29,216.22,23.776884]
[1733807036965,10.0,216.29,216.23,0.53922909]
[1733807040867,10.0,216.31,216.23,0.53922909]
[1733807041375,10.0,216.33,216.26,23.776884]
[1733807041547,10.0,216.33,216.27,0.53890251]
[1733807041760,10.0,216.35,216.29,20.0]
[1733807041963,10.0,216.35,216.3,24.31559899]
[1733807042252,10.0,216.35,216.3,25.41559899]
[1733807042882,10.0,216.36,216.3,25.41559899]
[1733807044468,10.0,216.38,216.3,25.41559899]
[1733807045881,10.0,216.4,216.34,23.776884]
[1733807046075,10.0,216.4,216.35,0.53833481]
[1733807046285,10.0,216.42,216.35,0.53833481]
[1733807046481,10.0,216.4,216.35,0.53833481]
[1733807046679,10.0,216.38,216.34,24.876884]
[1733807047073,10.0,216.38,216.37,20.0]
[1733807047373,10.0,216.49,216.39,20.0]
[1733807047572,10.0,216.52,216.43,20.0]
[1733807047716,0.5682305,216.55,216.44,20.53761755]
[1733807047998,0.5682305,216.55,216.46,20.0]
[1733807048173,0.5682305,216.55,216.48,20.0]
[1733807048387,0.5682305,216.55,216.49,0.53696386]
[1733807048698,0.5682305,216.55,216.52,20.0]
[1733807048988,0.5682305,216.55,216.54,20.0]
[1733807049176,0.5682305,216.55,216.54,43.776884]
[1733807049771,0.5682305,216.55,216.54,44.876884]
[1733807049968,0.5682305,216.55,216.53,0.53682367]
[1733807049969,0.5682305,216.55,216.53,20.53682367]
[1733807050167,0.5682305,216.55,216.54,23.776884]
[1733807050367,0.5682305,216.55,216.51,0.53672653]
[1733807050574,10.0,216.51,216.45,1.1]
[1733807050785,10.5682305,216.55,216.46,0.53733284]
[1733807051093,0.5682305,216.55,216.5,1.1]
[1733807051276,10.0,216.64,216.53,13.43302604]
[1733807051471,10.0,216.64,216.54,0.53631707]
[1733807051772,10.0,216.62,216.57,20.0]
[1733807051990,10.0,216.64,216.58,0.53643545]
[1733807052568,10.0,216.64,216.58,24.31331945]
[1733807052772,10.0,216.66,216.58,25.41331945]
[1733807053187,10.0,216.68,216.58,25.41331945]
[1733807053373,10.0,216.66,216.58,25.41331945]
[1733807054069,10.0,216.69,216.61,20.0]
[1733807054283,10.0,216.69,216.62,24.31294779]
[1733807055394,10.0,216.71,216.62,25.41294779]
[1733807055568,10.0,216.73,216.66,23.776884]
[1733807055775,10.0,216.7,216.66,1.1]
[1733807055974,10.0,216.7,216.67,0.5358762]
[1733807056377,10.0,216.7,216.66,1.1]
[1733807057005,10.0,216.72,216.67,24.31261311]
[1733807057182,10.0,216.72,216.67,25.41261311]
[1733807057396,10.0,216.75,216.67,25.41261311]
[1733807057604,0.5682305,216.77,216.7,20.0]
[1733807057797,0.5682305,216.77,216.71,0.5352946]
[1733807057979,0.5682305,216.77,216.72,23.776884]
[1733807058223,0.5682305,216.77,216.71,8.1614946]
[1733807058224,10.5682305,216.77,216.73,0.53517848]
[1733807058382,10.0,216.75,216.71,0.53535578]
[1733807058581,0.5682305,216.77,216.68,1.5487]
[1733807058582,10.0,216.72,216.68,21.5487]
[1733807058803,10.0,216.76,216.69,24.31268369]
[1733807059007,0.5682305,216.77,216.69,24.31268369]
[1733807059008,0.5682305,216.77,216.72,20.0]
[1733807059192,0.5682305,216.77,216.73,0.53523397]
[1733807059381,10.0,216.76,216.73,0.53523397]
[1733807059581,0.5682305,216.77,216.73,0.53523397]
[1733807060010,0.5682305,216.77,216.73,24.31211797]
[1733807060515,0.5682305,216.77,216.73,25.41211797]
[1733807060809,0.5682305,216.77,216.76,43.776884]
[1733807061613,0.5682305,216.77,216.76,355.776884]
[1733807061706,0.5682305,216.77,216.76,332.0]
[1733807062287,0.5682305,216.77,216.76,355.776884]
[1733807063603,0.5682305,216.77,216.76,312.0]
[1733807065323,10.5682305,216.77,216.73,1.1]
[1733807065537,10.5682305,216.77,216.69,0.53539432]
[1733807066096,0.5682305,216.77,216.69,0.53539432]
[1733807067000,10.0,216.76,216.71,20.0]
[1733807067201,10.0,216.76,216.72,0.53534163]
[1733807067448,10.0,216.76,216.69,0.53545984]
[1733807068064,0.5682305,216.77,216.69,0.53545984]
[1733807068236,10.0,216.76,216.71,312.0]
[1733807068403,10.0,216.76,216.72,0.53535817]
[1733807069712,0.5682305,216.77,216.72,0.53535817]
[1733807070520,10.0,216.76,216.72,0.53535817]
[1733807071834,10.0,216.74,216.72,312.0]
[1733807072629,10.0,216.74,216.7,1.1]
[1733807072827,10.0,216.74,216.71,0.53553997]
[1733807074048,10.0,216.71,216.66,0.53552816]
[1733807074247,10.0,216.74,216.68,0.53552816]
[1733807074562,10.0,216.72,216.64,2.38276902]
[1733807075035,10.0,216.72,216.64,3.48276902]
[1733807075212,10.0,216.72,216.65,23.776884]
[1733807075407,10.0,216.72,216.66,0.5357175]
[1733807075631,10.0,216.72,216.68,312.0]
[1733807075938,10.0,216.72,216.69,0.53570945]
[1733807076117,10.0,216.7,216.69,0.53570945]
[1733807076432,10.0,216.68,216.66,0.53577017]
[1733807076840,10.0,216.7,216.66,0.53577017]
[1733807077042,10.0,216.72,216.66,0.53577017]
[1733807077840,10.0,216.72,216.66,24.31265417]
[1733807078037,10.0,216.75,216.66,25.41265417]
[1733807078211,10.5682305,216.77,216.69,20.0]
[1733807078529,10.5682305,216.77,216.7,0.53543061]
[1733807078733,10.5682305,216.77,216.7,24.31231461]
[1733807079231,10.5682305,216.77,216.72,312.0]
[1733807079490,10.0,216.75,216.73,0.53533649]
[1733807079948,0.5682305,216.77,216.73,0.53533649]
[1733807080452,0.5682305,216.77,216.74,24.876884]
[1733807080633,0.5682305,216.77,216.75,1.63500036]
[1733807082631,0.5682305,216.77,216.76,312.0]
[1733807083643,0.5682305,216.77,216.75,1.1]
[1733807083644,10.5682305,216.77,216.75,1.1]
[1733807084841,0.5682305,216.77,216.75,1.1]
[1733807085146,10.5682305,216.77,216.75,1.1]
[1733807085768,10.5682305,216.77,216.7,25.41221456]
[1733807086623,10.5682305,216.77,216.75,312.0]
[1733807087925,0.5682305,216.77,216.7,24.876884]
[1733807088252,0.5682305,216.77,216.71,24.31204649]
[1733807088253,10.5682305,216.77,216.71,24.31204649]
[1733807090918,10.5682305,216.77,216.75,312.0]
[1733807091342,10.0,216.74,216.7,1.1]
[1733807092147,10.0,216.72,216.68,0.53558753]
[1733807092466,10.0,216.69,216.67,1.81482152]
[1733807092752,10.0,216.66,216.62,0.53579792]
[1733807092937,0.86514959,216.76,216.62,0.53579792]
[1733807092938,10.0,216.69,216.62,1.63579792]
[1733807094544,10.0,216.69,216.66,312.0]
[1733807098438,10.0,216.75,216.67,0.5359334]
[1733807098738,10.0,216.75,216.67,1.6359334]
[1733807099050,10.5682305,216.77,216.68,24.876884]
[1733807099254,10.5682305,216.77,216.71,20.0]
[1733807099470,10.0,216.76,216.72,0.5352159]
[1733807099656,0.5682305,216.77,216.72,0.5352159]
[1733807100160,10.5682305,216.77,216.72,0.5352159]
[1733807100460,0.5682305,216.77,216.72,0.5352159]
[1733807100835,10.5682305,216.77,216.72,24.3120999]
[1733807101072,10.5682305,216.77,216.72,0.5352159]
[1733807101665,10.5682305,216.77,216.76,312.0]
[1733807102065,10.0,216.75,216.69,1.1]
[1733807102262,10.5682305,216.77,216.7,0.53536415]
[1733807102675,10.0,216.74,216.7,0.53536415]
[1733807103731,10.0,216.72,216.7,0.53536415]
[1733807103903,10.0,216.72,216.65,1.63575954]
[1733807104161,10.0,216.68,216.65,1.63575954]
[1733807104347,10.0,216.68,216.65,0.53575954]
[1733807104555,10.0,216.64,216.59,1.63631698]
[1733807104762,10.0,216.62,216.59,0.53631698]
[1733807104948,10.0,216.62,216.57,1.5501]
[1733807105175,10.0,216.62,216.6,312.0]
[1733807106337,10.0,216.66,216.61,0.53650147]
[1733807106759,10.0,216.62,216.58,0.53620948]
[1733807107772,10.0,216.6,216.58,0.53620948]
[1733807107979,10.0,216.6,216.55,1.1]
[1733807107980,10.0,216.6,216.56,0.53659484]
[1733807108186,10.0,216.56,216.53,0.53673161]
[1733807108345,10.0,216.54,216.51,0.53699205]
[1733807108658,10.0,216.58,216.51,0.53699205]
[1733807108851,10.0,216.58,216.51,1.63699205]
[1733807109444,10.0,216.58,216.54,312.0]
[1733807109671,10.0,216.55,216.54,312.0]
[1733807109879,10.0,216.59,216.48,2.97246315]
[1733807110044,10.0,216.59,216.49,0.53670612]
[1733807110420,0.86553132,216.69,216.49,1.63670612]
[1733807110421,10.0,216.54,216.49,1.63670612]
[1733807110482,10.0,216.56,216.49,0.53670612]
[1733807111059,10.0,216.53,216.49,0.53670612]
[1733807111867,10.0,216.55,216.49,0.53670612]
[1733807112253,10.0,216.53,216.49,0.53670612]
[1733807112659,10.0,216.5,216.47,0.53710465]
[1733807112850,10.0,216.48,216.45,2.13944924]
[1733807113365,10.0,216.48,216.45,0.53744924]
[1733807114064,10.0,216.44,216.41,0.53754889]
[1733807114265,10.0,216.44,216.38,0.53754889]
[1733807115281,10.0,216.44,216.39,0.5378771]
[1733807115663,10.0,216.42,216.39,0.5378771]
[1733807115961,10.0,216.4,216.36,0.53784487]
[1733807116380,0.8662759,216.47,216.36,0.53784487]
[1733807116381,10.0,216.38,216.36,0.53784487]
[1733807116755,10.0,216.38,216.33,0.53829745]
[1733807116973,0.8662759,216.47,216.33,0.53829745]
[1733807116974,10.0,216.4,216.33,0.53829745]
[1733807117174,10.0,216.38,216.33,0.53829745]
[1733807117386,10.0,216.38,216.33,24.31518145]
[1733807119000,10.0,216.38,216.37,312.0]
[1733807119190,10.0,216.42,216.37,312.0]
[1733807119464,10.0,216.42,216.38,24.31489406]
[1733807119628,6.5679,216.48,216.33,21.63804203]
[1733807119629,10.0,216.4,216.33,21.63804203]
[1733807119781,10.0,216.42,216.34,23.776884]
[1733807119980,10.0,216.42,216.35,0.53812322]
[1733807120283,10.0,216.44,216.35,0.53812322]
[1733807120488,10.0,216.44,216.38,23.776884]
[1733807120702,10.0,216.44,216.39,0.53794063]
[1733807120897,10.0,216.4,216.39,0.53794063]
[1733807121084,10.0,216.46,216.38,24.31502856]
[1733807121290,6.5679,216.48,216.38,24.31502856]
[1733807121291,10.0,216.44,216.38,24.31502856]
[1733807121798,10.0,216.41,216.4,20.0]
[1733807121993,10.0,216.43,216.38,0.53814456]
[1733807122297,10.0,216.43,216.41,20.0]
[1733807122496,10.0,216.43,216.42,312.0]
[1733807123410,10.0,216.38,216.34,23.776884]
[1733807123592,10.0,216.38,216.34,24.31525734]
[1733807124274,10.0,216.38,216.37,20.0]
[1733807124604,10.0,216.38,216.34,24.31525734]
[1733807124990,0.86615674,216.47,216.34,0.53837334]
[1733807124991,10.0,216.36,216.34,0.53837334]
[1733807125298,10.0,216.43,216.35,0.53855561]
[1733807125533,10.0,216.39,216.35,0.53855561]
[1733807126183,10.0,216.39,216.38,312.0]
[1733807126806,10.0,216.44,216.38,312.0]
[1733807126987,10.0,216.42,216.39,0.53795841]
[1733807127188,10.0,216.4,216.37,0.53813142]
[1733807127388,10.0,216.42,216.37,0.53813142]
[1733807127709,10.0,216.39,216.37,0.53813142]
[1733807128163,10.0,216.36,216.33,20.0]
[1733807128315,10.0,216.36,216.32,1.63829832]
[1733807128612,0.86616083,216.47,216.3,21.602]
[1733807128613,10.0,216.33,216.3,2.14057548]
[1733807128898,10.0,216.32,216.3,0.53857548]
[1733807129080,10.0,216.32,216.29,1.82923058]
[1733807129283,10.0,216.34,216.3,0.53873182]
[1733807129485,10.0,216.32,216.3,0.53873182]
[1733807129685,10.0,216.34,216.3,0.53873182]
[1733807129902,10.0,216.34,216.33,312.0]
[1733807131917,10.0,216.36,216.33,312.0]
[1733807132102,10.0,216.39,216.34,0.53846591]
[1733807132300,6.5679,216.48,216.36,23.776884]
[1733807132301,10.0,216.41,216.36,23.776884]
[1733807132493,10.0,216.43,216.37,0.53809235]
[1733807132696,10.0,216.43,216.38,20.0]
[1733807132909,10.0,216.42,216.4,23.776884]
[1733807133456,6.5679,216.48,216.4,23.776884]
[1733807133457,10.0,216.44,216.4,23.776884]
[1733807133617,10.0,216.46,216.43,20.0]
[1733807134017,10.0,216.48,216.44,23.776884]
[1733807134196,10.0,216.48,216.45,0.53747991]
[1733807134906,10.0,216.48,216.47,20.0]
[1733807135216,10.0,216.48,216.47,312.0]
[1733807135917,10.0,216.48,216.41,20.0]
[1733807136117,10.0,216.41,216.39,0.53803301]
[1733807137117,10.0,216.41,216.38,0.5381431]
[1733807137413,10.0,216.39,216.38,0.5381431]
[1733807137617,10.0,216.39,216.37,23.776884]
[1733807139916,10.0,216.41,216.38,0.53824949]
[1733807140169,10.0,216.41,216.4,43.776884]
[1733807141206,10.0,216.37,216.36,24.31488135]
[1733807141418,10.0,216.41,216.37,23.776884]
[1733807141621,10.0,216.39,216.38,0.53812299]
[1733807141927,10.0,216.41,216.37,0.53823363]
[1733807143143,26.0441,216.53,216.37,0.53823363]
[1733807143144,10.0,216.43,216.38,20.0]
[1733807143363,10.0,216.45,216.42,20.0]
[1733807143578,10.0,216.45,216.43,0.53774003]
[1733807144016,10.0,216.47,216.43,24.31462403]
[1733807144433,10.0,216.45,216.43,24.31462403]
[1733807144800,10.0,216.45,216.43,23.776884]
[1733807145219,10.0,216.4,216.39,0.53782925]
[1733807145410,10.0,216.38,216.35,0.53784623]
[1733807145817,10.0,216.42,216.35,0.53784623]
[1733807146007,10.0,216.4,216.35,0.53784623]
[1733807146204,10.0,216.38,216.35,0.53784623]
[1733807146426,10.0,216.36,216.35,312.53784623]
[1733807146675,10.0,216.36,216.31,1.1]
[1733807146903,10.0,216.36,216.32,0.53852526]
[1733807147744,10.0,216.34,216.32,0.53852526]
[1733807147912,10.0,216.34,216.31,0.53867149]
[1733807148345,10.0,216.36,216.31,0.53867149]
[1733807148633,10.0,216.38,216.33,20.0]
[1733807148835,10.0,216.38,216.34,0.5383506]
[1733807149136,10.0,216.38,216.37,20.0]
[1733807149320,10.0,216.4,216.37,20.0]
[1733807149546,10.0,216.42,216.38,24.31518851]
[1733807149825,10.0,216.39,216.38,0.53830451]
[1733807150528,10.0,216.42,216.38,24.31518851]
[1733807150828,10.0,216.42,216.41,20.0]
[1733807151038,10.0,216.44,216.41,20.0]
[1733807151401,10.0,216.46,216.42,24.31475837]
[1733807151611,10.0,216.44,216.42,24.31475837]
[1733807152030,10.0,216.46,216.42,24.31475837]
[1733807152231,6.3473,216.54,216.42,24.31475837]
[1733807152232,10.0,216.5,216.45,20.0]
[1733807152408,10.0,216.5,216.46,0.53750604]
[1733807153233,10.0,216.52,216.5,23.776884]
[1733807153423,10.0,216.53,216.5,24.31396005]
[1733807153619,10.0,216.53,216.52,43.776884]
[1733807154240,10.0,216.55,216.52,43.776884]
[1733807154414,10.0,216.53,216.52,43.776884]
[1733807154607,10.0,216.53,216.52,20.0]
[1733807154929,10.0,216.51,216.49,1.1]
[1733807155227,10.0,216.53,216.49,1.1]
[1733807155526,10.0,216.53,216.5,23.776884]
[1733807156335,10.0,216.48,216.47,0.53723718]
[1733807156429,10.0,216.48,216.46,23.776884]
[1733807156612,10.0,216.46,216.45,1.1]
[1733807157323,10.0,216.46,216.43,2.13877545]
[1733807157528,10.0,216.5,216.43,2.13877545]
[1733807157929,10.0,216.51,216.47,20.0]
[1733807158240,10.0,216.51,216.47,20.53731157]
[1733807158537,10.0,216.53,216.48,23.776884]
[1733807158839,10.0,216.55,216.51,20.0]
[1733807159162,10.0,216.57,216.52,23.776884]
[1733807159454,10.0,216.59,216.55,20.0]